bitfinex-derivatives/quotes_SOLF0:USTF0_20241120
["timestamp","ask_amount","ask_price","bid_price","bid_amount"]
[1732113071550,1.6961,241.59,241.44,1.6864]
[1732113071847,2.86,241.58,241.44,1.6864]
[1732113072048,2.0678,241.55,241.44,1.6864]
[1732113072443,2.0676,241.57,241.5,2.0681]
[1732113072647,2.86,241.56,241.47,25.61450448]
[1732113073649,2.86,241.56,241.51,2.068]
[1732113073950,2.86,241.6,241.51,25.61450448]
[1732113074147,2.86,241.62,241.55,2.0677]
[1732113074449,2.067,241.64,241.52,1.6742]
[1732113074450,2.86,241.64,241.52,1.6742]
[1732113074644,2.86,241.64,241.56,25.61450448]
[1732113075448,4.5561,241.69,241.56,25.61450448]
[1732113075645,25.61450448,241.68,241.52,1.6742]
[1732113075850,2.0672,241.62,241.56,2.0676]
[1732113076051,2.86,241.61,241.47,25.61450448]
[1732113076243,2.86,241.6,241.46,1.6742]
[1732113076449,2.86,241.59,241.5,25.61450448]
[1732113076950,2.86,241.59,241.46,27.28870448]
[1732113077448,2.86,241.59,241.54,2.0678]
[1732113077653,1.6961,241.69,241.54,25.61450448]
[1732113077853,2.86,241.68,241.54,25.61450448]
[1732113078052,2.86,241.68,241.6,2.0673]
[1732113078053,2.0668,241.66,241.6,2.0673]
[1732113078254,2.86,241.68,241.54,25.61450448]
[1732113078754,2.0667,241.67,241.61,2.0672]
[1732113079250,2.86,241.68,241.54,25.61450448]
[1732113079553,2.86,241.67,241.58,25.61450448]
[1732113079753,2.86,241.68,241.58,25.61450448]
[1732113079955,2.86,241.68,241.61,2.0672]
[1732113080655,2.86,241.68,241.54,25.61450448]
[1732113080850,2.86,241.68,241.51,1.7142]
[1732113081252,2.0672,241.61,241.54,2.0677]
[1732113081447,2.86,241.6,241.51,1.7142]
[1732113081747,2.86,241.6,241.54,2.0678]
[1732113081748,4.9274,241.6,241.54,2.0678]
[1732113082253,3.3171,241.75,241.53,25.61450448]
[1732113082453,2.86,241.74,241.57,25.61450448]
[1732113083062,3.3171,241.75,241.53,2.86]
[1732113083063,3.3171,241.75,241.61,25.61450448]
[1732113083359,2.86,241.8,241.65,25.61450448]
[1732113083549,2.86,241.82,241.69,25.61450448]
[1732113084552,2.0655,241.81,241.69,25.61450448]
[1732113084954,2.86,241.82,241.73,25.61450448]
[1732113085456,2.0652,241.85,241.73,25.61450448]
[1732113086254,2.0652,241.85,241.66,1.6275]
[1732113086255,25.61450448,241.99,241.77,25.61450448]
[1732113086458,25.61450448,241.99,241.81,25.61450448]
[1732113087364,2.0646,241.92,241.81,25.61450448]
[1732113087853,2.86,241.94,241.81,25.61450448]
[1732113088258,2.86,241.94,241.78,3.1579]
[1732113088461,2.86,241.94,241.73,25.61450448]
[1732113088761,2.86,241.94,241.77,25.61450448]
[1732113089157,2.0649,241.88,241.77,25.61450448]
[1732113089363,2.86,241.94,241.77,25.61450448]
[1732113089962,25.61450448,241.99,241.81,25.61450448]
[1732113090163,2.86,241.98,241.81,25.61450448]
[1732113090361,2.0647,241.91,241.81,25.61450448]
[1732113090565,2.86,241.98,241.81,25.61450448]
[1732113091764,2.86,241.98,241.82,3.2765]
[1732113091969,2.86,241.98,241.84,2.0652]
[1732113092262,2.86,241.98,241.82,3.2765]
[1732113092470,25.61450448,241.95,241.78,1.6264]
[1732113092665,25.61450448,241.95,241.73,25.61450448]
[1732113093067,2.0654,241.83,241.76,2.0659]
[1732113093267,25.61450448,241.95,241.73,25.61450448]
[1732113093268,2.86,241.85,241.73,25.61450448]
[1732113094167,2.86,241.85,241.74,2.0661]
[1732113094474,2.86,241.85,241.76,2.0659]
[1732113094666,2.86,241.85,241.77,25.61450448]
[1732113095671,2.86,241.85,241.8,2.0656]
[1732113095874,25.61450448,241.99,241.81,25.61450448]
[1732113096073,2.86,241.98,241.77,25.61450448]
[1732113096376,2.86,241.98,241.81,2.0654]
[1732113096672,2.0645,241.93,241.81,2.0654]
[1732113096868,2.86,241.98,241.79,2.0656]
[1732113097070,25.61450448,241.95,241.73,28.47450448]
[1732113097371,25.61450448,241.95,241.73,25.61450448]
[1732113097569,25.61450448,241.91,241.73,25.61450448]
[1732113097770,6.0309,241.9,241.73,25.61450448]
[1732113098275,1.7043,241.89,241.73,25.61450448]
[1732113099475,2.0652,241.85,241.73,25.61450448]
[1732113099675,1.7043,241.89,241.73,25.61450448]
[1732113099872,1.7043,241.89,241.69,4.8721]
[1732113099873,1.7043,241.89,241.77,25.61450448]
[1732113100072,6.0309,241.9,241.77,25.61450448]
[1732113100274,6.0309,241.9,241.78,2.0657]
[1732113100468,6.0309,241.9,241.77,25.61450448]
[1732113100866,6.0309,241.9,241.73,25.61450448]
[1732113101066,2.0655,241.81,241.73,25.61450448]
[1732113101381,1.6956,241.98,241.78,25.61450448]
[1732113101576,3.299,241.97,241.78,25.61450448]
[1732113101967,25.61450448,241.95,241.78,25.61450448]
[1732113102271,25.61450448,241.95,241.74,25.61450448]
[1732113102473,25.61450448,241.95,241.77,2.0658]
[1732113103273,25.61450448,241.95,241.74,25.61450448]
[1732113103478,2.065,241.88,241.74,25.61450448]
[1732113103670,3.12,241.91,241.74,25.61450448]
[1732113104373,3.299,241.97,241.78,25.61450448]
[1732113104572,25.61450448,241.95,241.78,25.61450448]
[1732113104775,3.34,241.96,241.77,2.0658]
[1732113104977,19.09146762,241.96,241.75,15.75146762]
[1732113108075,2.065,241.87,241.8,2.0656]
[1732113108280,19.09146762,241.96,241.75,15.75146762]
[1732113108484,19.09146762,241.96,241.8,2.0655]
[1732113108678,19.09146762,241.96,241.79,15.75146762]
[1732113108883,19.09146762,241.96,241.75,15.75146762]
[1732113109078,19.09146762,241.96,241.8,2.0656]
[1732113109280,3.299,241.97,241.79,15.75146762]
[1732113109579,3.34,241.96,241.79,15.75146762]
[1732113109981,2.0647,241.91,241.83,2.0653]
[1732113110279,6.639,241.97,241.8,3.3047]
[1732113111079,6.639,241.97,241.83,2.0653]
[1732113111275,6.639,241.97,241.8,3.3047]
[1732113111681,6.639,241.97,241.82,2.0654]
[1732113112380,6.639,241.97,241.8,3.3047]
[1732113112579,15.75146762,241.96,241.8,3.3047]
[1732113112884,15.75146762,241.96,241.8,1.626]
[1732113113588,15.75146762,241.96,241.75,15.75146762]
[1732113113788,2.0648,241.9,241.76,2.0659]
[1732113113997,3.34,241.89,241.75,15.75146762]
[1732113114183,3.34,241.88,241.75,15.75146762]
[1732113115286,3.34,241.88,241.71,19.09016762]
[1732113115483,19.09146762,241.88,241.71,3.3387]
[1732113115682,2.0654,241.83,241.72,2.0663]
[1732113115887,19.09146762,241.88,241.71,3.3387]
[1732113116593,3.34,241.88,241.71,19.09016762]
[1732113117088,3.34,241.88,241.75,15.75146762]
[1732113117289,3.34,241.88,241.76,2.0659]
[1732113117485,3.34,241.88,241.75,15.75146762]
[1732113117685,3.34,241.88,241.71,19.09016762]
[1732113117881,3.34,241.88,241.75,2.066]
[1732113117882,2.0654,241.83,241.75,2.066]
[1732113118090,3.34,241.88,241.71,19.09016762]
[1732113118488,3.34,241.88,241.75,2.066]
[1732113118886,3.34,241.88,241.71,19.09016762]
[1732113119688,2.0655,241.81,241.76,2.0659]
[1732113120286,3.34,241.88,241.71,19.09016762]
[1732113120691,15.75146762,241.83,241.62,2.29660056]
[1732113120890,5.006,241.82,241.62,15.75146762]
[1732113121086,5.006,241.82,241.61,4.932]
[1732113121087,15.75146762,241.79,241.61,4.932]
[1732113121287,15.75146762,241.75,241.54,17.44906762]
[1732113121788,2.0662,241.74,241.59,2.0673]
[1732113121987,15.75146762,241.8,241.58,15.75146762]
[1732113121988,3.34,241.73,241.58,15.75146762]
[1732113122188,3.34,241.72,241.58,15.75146762]
[1732113122493,4.9733,241.71,241.58,15.75146762]
[1732113123587,1.6333,241.71,241.58,15.75146762]
[1732113123793,3.34,241.74,241.62,15.75146762]
[1732113124088,3.34,241.79,241.62,15.75146762]
[1732113124293,3.34,241.79,241.58,15.75146762]
[1732113124490,3.34,241.79,241.64,15.75146762]
[1732113124689,3.34,241.79,241.58,15.75146762]
[1732113125088,15.75146762,241.76,241.54,19.75708129]
[1732113125293,15.75146762,241.72,241.54,17.44906762]
[1732113125487,6.6248,241.71,241.54,1.6976]
[1732113126093,2.0671,241.63,241.54,1.6976]
[1732113126294,6.6248,241.71,241.54,1.6976]
[1732113126590,6.6248,241.71,241.48,2.30801367]
[1732113126591,2.0677,241.55,241.48,2.30801367]
[1732113126792,3.34,241.58,241.45,7.07591367]
[1732113126996,3.34,241.58,241.46,2.30801367]
[1732113127194,2.0678,241.55,241.45,4.7679]
[1732113127393,3.34,241.58,241.45,7.07591367]
[1732113127590,3.34,241.58,241.45,4.7679]
[1732113127794,2.0678,241.55,241.45,4.7679]
[1732113128094,3.34,241.58,241.45,4.7679]
[1732113128292,3.34,241.59,241.45,4.7679]
[1732113128694,3.34,241.59,241.45,7.07591367]
[1732113128990,3.34,241.6,241.45,7.07591367]
[1732113129191,15.75146762,241.55,241.37,2.30801367]
[1732113129397,4.16,241.54,241.39,2.0691]
[1732113129591,4.16,241.54,241.35,15.75146762]
[1732113129592,1.6685,241.58,241.35,15.75146762]
[1732113129792,1.6685,241.58,241.39,15.75146762]
[1732113129998,4.38,241.57,241.43,2.0688]
[1732113130500,4.38,241.56,241.4,3.4051]
[1732113130701,2.0682,241.5,241.4,3.4051]
[1732113131195,4.38,241.56,241.4,3.4051]
[1732113131599,4.38,241.55,241.4,3.4051]
[1732113131797,2.0682,241.5,241.43,2.0688]
[1732113131993,2.0682,241.5,241.4,3.4051]
[1732113132700,4.38,241.52,241.4,3.4051]
[1732113133093,4.38,241.52,241.35,15.75146762]
[1732113133291,4.38,241.52,241.38,2.0692]
[1732113133496,4.38,241.52,241.35,15.75146762]
[1732113133700,2.0685,241.46,241.37,2.0692]
[1732113133899,4.38,241.52,241.37,2.0692]
[1732113134101,4.38,241.52,241.35,15.75146762]
[1732113134301,2.0685,241.46,241.38,2.0692]
[1732113134501,4.38,241.52,241.38,2.0692]
[1732113134897,2.0686,241.45,241.38,2.0692]
[1732113135097,4.38,241.52,241.35,15.75146762]
[1732113135302,15.75146762,241.51,241.34,3.2058]
[1732113135503,2.0692,241.38,241.33,1.5727]
[1732113135797,4.38,241.39,241.27,15.75146762]
[1732113135998,4.38,241.38,241.27,15.75146762]
[1732113136203,4.38,241.38,241.23,15.75146762]
[1732113136403,4.38,241.37,241.27,15.75146762]
[1732113136915,2.0695,241.35,241.27,15.75146762]
[1732113137097,4.38,241.37,241.26,2.0702]
[1732113137302,2.0695,241.35,241.23,15.75146762]
[1732113137599,5.0324,241.46,241.31,15.75146762]
[1732113137803,2.0695,241.35,241.26,15.75146762]
[1732113138003,4.38,241.34,241.22,15.75146762]
[1732113138203,4.38,241.33,241.22,15.75146762]
[1732113138404,4.38,241.32,241.22,15.75146762]
[1732113138602,4.38,241.31,241.22,15.75146762]
[1732113138901,2.0697,241.33,241.22,15.75146762]
[1732113139111,4.38,241.32,241.23,2.0704]
[1732113139405,15.75146762,241.43,241.21,1.6014]
[1732113139406,2.07,241.29,241.21,1.6014]
[1732113139604,4.38,241.31,241.16,3.2759]
[1732113139904,2.0702,241.27,241.17,15.75146762]
[1732113140107,4.38,241.31,241.17,15.75146762]
[1732113140899,4.38,241.31,241.16,1.6388]
[1732113141110,15.75146762,241.26,241.1,1.6014]
[1732113141513,2.0708,241.2,241.13,15.75146762]
[1732113141701,4.38,241.25,241.13,15.75146762]
[1732113142207,4.38,241.25,241.11,1.5792]
[1732113142702,4.38,241.25,241.11,3.6506]
[1732113142902,4.38,241.25,241.11,1.5792]
[1732113143307,2.0708,241.2,241.11,3.6506]
[1732113143511,4.38,241.25,241.04,15.75146762]
[1732113143704,15.75146762,241.22,241.04,15.75146762]
[1732113143911,15.75146762,241.22,241.04,2.0721]
[1732113144106,15.75146762,241.22,241.0,15.75146762]
[1732113144803,15.75146762,241.26,241.04,15.75146762]
[1732113145011,4.38,241.25,241.04,15.75146762]
[1732113145307,2.0712,241.15,241.07,2.0718]
[1732113145604,2.071,241.18,241.08,17.82316762]
[1732113145810,4.38,241.19,241.08,15.75146762]
[1732113147312,19.14826762,241.3,241.09,2.0717]
[1732113147313,4.18,241.2,241.09,2.0717]
[1732113147813,4.18,241.2,241.08,15.75146762]
[1732113148412,2.071,241.17,241.1,2.0716]
[1732113148606,3.3968,241.3,241.12,15.75146762]
[1732113148805,4.18,241.29,241.16,15.75146762]
[1732113149006,29.82,241.33,241.2,15.75146762]
[1732113149510,31.8897,241.33,241.24,2.0704]
[1732113149705,29.82,241.33,241.2,15.75146762]
[1732113149909,29.82,241.33,241.21,1.57]
[1732113150305,2.07,241.29,241.22,2.0706]
[1732113150511,29.82,241.33,241.21,1.57]
[1732113151410,2.0703,241.27,241.16,2.0712]
[1732113151611,45.57146762,241.33,241.16,2.0712]
[1732113151812,57.98146762,241.33,241.13,17.47106762]
[1732113152014,2.071,241.2,241.12,2.0716]
[1732113152314,4.18,241.22,241.09,17.32146762]
[1732113152513,2.0712,241.17,241.09,3.6419]
[1732113152816,2.0712,241.17,241.09,1.57]
[1732113153013,4.18,241.19,241.09,1.57]
[1732113153014,4.18,241.19,241.12,2.0716]
[1732113153214,4.18,241.19,241.09,17.32146762]
[1732113153710,1.6797,241.24,241.09,17.32146762]
[1732113153912,4.18,241.27,241.14,15.75146762]
[1732113154410,3.3039,241.28,241.09,17.32146762]
[1732113154411,4.18,241.36,241.22,15.75146762]
[1732113154711,6.2497,241.36,241.28,2.0702]
[1732113155009,6.2497,241.36,241.26,15.75146762]
[1732113155010,4.18,241.36,241.26,15.75146762]
[1732113155313,2.0699,241.32,241.25,2.0705]
[1732113155510,3.4404,241.38,241.22,15.75146762]
[1732113155810,4.18,241.37,241.22,15.75146762]
[1732113156012,4.18,241.37,241.18,15.75146762]
[1732113156606,4.18,241.37,241.2,2.0709]
[1732113157006,19.93146762,241.37,241.18,15.75146762]
[1732113157213,15.75146762,241.33,241.14,15.75146762]
[1732113157516,28.16146762,241.33,241.09,17.32146762]
[1732113157711,2.0709,241.21,241.14,2.0715]
[1732113157910,4.18,241.24,241.09,17.32146762]
[1732113158110,4.18,241.23,241.09,17.32146762]
[1732113158305,2.071,241.2,241.13,2.0715]
[1732113158513,4.18,241.23,241.13,2.0715]
[1732113159609,2.071,241.19,241.13,2.0715]
[1732113160011,2.0709,241.21,241.14,2.0715]
[1732113160212,4.18,241.29,241.15,25.73356118]
[1732113160413,4.18,241.29,241.1,25.73356118]
[1732113160615,1.6381,241.28,241.1,25.73356118]
[1732113161013,2.0711,241.18,241.11,2.0717]
[1732113163017,2.0711,241.18,241.09,1.57]
[1732113163018,4.18,241.2,241.02,25.73356118]
[1732113163416,2.0714,241.15,241.04,2.0723]
[1732113163613,4.18,241.2,241.04,2.0723]
[1732113164518,4.18,241.2,240.88,4.1473]
[1732113164519,25.73356118,241.19,240.79,5.50875953]
[1732113164715,25.73356118,241.19,241.0,25.73356118]
[1732113165517,2.0726,241.01,240.94,2.0731]
[1732113165718,4.18,241.05,240.92,25.73356118]
[1732113166015,4.18,241.05,240.98,2.0728]
[1732113166320,4.18,241.05,240.96,25.73356118]
[1732113166816,4.18,241.05,240.97,2.0729]
[1732113167418,4.18,241.05,240.96,25.73356118]
[1732113167622,4.18,241.05,240.92,25.73356118]
[1732113168029,2.0726,241.02,240.93,2.0732]
[1732113168226,4.18,241.05,240.92,25.73356118]
[1732113168519,2.0724,241.04,240.96,2.073]
[1732113168727,4.18,241.05,240.92,25.73356118]
[1732113168917,3.4285,241.1,240.9,4.18]
[1732113169122,25.73356118,241.19,241.05,2.0722]
[1732113169123,4.18,241.12,241.05,2.0722]
[1732113169622,4.18,241.12,241.0,25.73356118]
[1732113170020,4.18,241.18,241.04,25.73356118]
[1732113170220,2.0716,241.13,241.04,25.73356118]
[1732113170724,6.2512,241.18,241.1,2.0718]
[1732113170921,5.2245,241.26,241.08,25.73356118]
[1732113171120,4.18,241.25,241.12,25.73356118]
[1732113171426,7.295,241.26,241.18,2.0711]
[1732113171620,5.2245,241.26,241.18,2.0711]
[1732113172218,4.18,241.29,241.16,25.73356118]
[1732113172620,2.0704,241.26,241.19,2.071]
[1732113172825,2.0704,241.26,241.0,1.7764]
[1732113172826,43.0,241.12,240.95,5.50875953]
[1732113173025,25.73356118,240.96,240.91,44.07007625]
[1732113173228,2.0731,240.95,240.91,44.07007625]
[1732113173434,2.0731,240.95,240.81,3.4533]
[1732113173927,1.7837,241.06,240.9,25.73356118]
[1732113174224,25.73356118,241.2,240.9,25.73356118]
[1732113174225,25.73356118,241.12,240.9,25.73356118]
[1732113174428,6.2516,241.13,241.02,2.0724]
[1732113174629,4.18,241.13,240.94,25.73356118]
[1732113174824,4.18,241.13,240.95,5.0385]
[1732113175029,4.18,241.13,241.03,2.0724]
[1732113175328,4.18,241.13,240.95,5.0385]
[1732113175533,4.61398,241.18,240.98,25.73356118]
[1732113176027,4.61398,241.18,241.09,2.0719]
[1732113176429,4.61398,241.18,241.02,25.73356118]
[1732113176630,0.43398,241.18,241.06,25.73356118]
[1732113177233,0.43398,241.18,241.07,1.7971]
[1732113177432,25.73356118,241.11,240.87,46.38420119]
[1732113177733,25.73356118,241.11,240.9,1.7846]
[1732113177734,9.0999,241.1,240.9,1.7846]
[1732113178228,9.0999,241.1,240.92,25.73356118]
[1732113178828,25.73356118,241.03,240.9,1.7846]
[1732113179030,25.73356118,240.99,240.9,1.7846]
[1732113179228,2.073,240.97,240.9,1.7846]
[1732113179634,25.73356118,240.99,240.9,1.7846]
[1732113179830,2.0728,240.99,240.91,2.0734]
[1732113180036,3.98,241.01,240.9,1.7846]
[1732113180231,3.98,241.08,240.92,25.73356118]
[1732113180435,3.98,241.08,241.01,2.0725]
[1732113180831,3.98,241.08,240.92,25.73356118]
[1732113181038,6.052,241.08,241.0,2.0726]
[1732113181239,6.052,241.08,240.92,25.73356118]
[1732113181240,3.98,241.08,240.92,25.73356118]
[1732113181543,25.73356118,241.03,240.9,1.7846]
[1732113182041,29.71356118,241.08,240.94,2.0732]
[1732113182241,3.98,241.08,240.9,1.7846]
[1732113183536,5.1199,241.1,240.92,25.73356118]
[1732113183736,25.73356118,241.19,241.01,25.73356118]
[1732113183940,3.98,241.21,241.02,5.0438]
[1732113184434,3.98,241.21,241.05,25.73356118]
[1732113184641,30.81126118,241.27,241.05,25.73356118]
[1732113184834,1.8039,241.27,241.09,25.73356118]
[1732113185039,29.71356118,241.31,241.13,25.73356118]
[1732113185243,3.98,241.31,241.17,25.73356118]
[1732113185649,6.05,241.31,241.17,25.73356118]
[1732113185850,3.98,241.31,241.17,25.73356118]
[1732113187149,3.98,241.31,241.14,29.14586118]
[1732113187741,2.0703,241.28,241.2,2.0709]
[1732113187951,3.98,241.31,241.14,29.14586118]
[1732113188147,3.96,241.37,241.19,25.73356118]
[1732113188752,2.0699,241.32,241.24,2.0706]
[1732113188946,3.96,241.37,241.14,3.4123]
[1732113188947,25.73356118,241.36,241.15,25.73356118]
[1732113189850,2.0706,241.25,241.15,25.73356118]
[1732113190047,25.73356118,241.36,241.15,25.73356118]
[1732113190349,2.0698,241.33,241.25,2.0705]
[1732113190550,1.6325,241.39,241.23,25.73356118]
[1732113190846,5.5925,241.39,241.23,25.73356118]
[1732113191047,2.0698,241.34,241.23,25.73356118]
[1732113191754,2.0698,241.34,241.26,2.0704]
[1732113192650,2.0698,241.34,241.23,25.73356118]
[1732113192651,5.5925,241.39,241.23,25.73356118]
[1732113192851,2.0696,241.36,241.28,2.0702]
[1732113193056,1.8039,241.42,241.27,25.73356118]
[1732113193247,2.0692,241.4,241.33,2.0698]
[1732113193454,3.96,241.43,241.28,4.9716]
[1732113194050,5.1339,241.55,241.32,25.73356118]
[1732113194051,25.73356118,241.53,241.32,25.73356118]
[1732113194251,3.96,241.5,241.32,25.73356118]
[1732113194653,3.96,241.5,241.36,2.0695]
[1732113194950,3.96,241.5,241.32,25.73356118]
[1732113195852,0.64023932,241.49,241.34,2.0697]
[1732113196048,3.96,241.5,241.34,2.0697]
[1732113196350,0.64024633,241.49,241.35,2.0696]
[1732113196550,0.64024633,241.49,241.32,25.73356118]
[1732113196958,0.64024633,241.49,241.36,25.73356118]
[1732113197252,3.96,241.51,241.36,25.73356118]
[1732113197456,86.42372,241.55,241.4,25.73356118]
[1732113197963,2.0686,241.48,241.41,2.0691]
[1732113198149,2.0686,241.48,241.28,4.9716]
[1732113198150,86.42372,241.55,241.36,25.73356118]
[1732113198954,86.42372,241.55,241.4,25.73356118]
[1732113199254,86.42372,241.55,241.36,25.73356118]
[1732113199853,2.0685,241.49,241.36,25.73356118]
[1732113200059,86.42372,241.55,241.36,25.73356118]
[1732113200255,86.42372,241.55,241.4,25.73356118]
[1732113200558,86.42372,241.55,241.41,3.3259]
[1732113202055,86.42372,241.55,241.36,29.69356118]
[1732113202056,86.42372,241.55,241.36,25.73356118]
[1732113202260,25.73356118,241.53,241.32,25.73356118]
[1732113202461,25.73356118,241.49,241.32,25.73356118]
[1732113203057,25.73356118,241.53,241.32,25.73356118]
[1732113203261,86.42372,241.55,241.36,25.73356118]
[1732113203761,25.73356118,241.39,240.89,6.2208]
[1732113203963,25.73356118,241.34,241.17,3.3225]
[1732113204157,2.0697,241.35,241.18,27.48146118]
[1732113204362,30.80466118,241.38,241.18,27.48146118]
[1732113205059,2.0701,241.3,241.24,2.0706]
[1732113205263,30.80466118,241.38,241.18,27.48146118]
[1732113205558,25.73356118,241.34,241.18,1.7479]
[1732113205958,25.73356118,241.3,241.18,1.7479]
[1732113206266,2.0703,241.28,241.21,2.0708]
[1732113206460,25.73356118,241.34,241.18,1.7479]
[1732113207058,2.0703,241.28,241.22,2.0708]
[1732113207259,2.0703,241.28,241.18,1.7479]
[1732113207460,25.73356118,241.34,241.18,1.7479]
[1732113208863,25.73356118,241.34,241.1,25.73356118]
[1732113209064,25.73356118,241.34,241.19,2.071]
[1732113209459,2.0703,241.29,241.22,2.0708]
[1732113209663,25.73356118,241.34,241.15,25.73356118]
[1732113209860,25.73356118,241.34,241.11,5.1947]
[1732113210065,25.73356118,241.3,241.11,5.1947]
[1732113210365,25.73356118,241.3,241.02,59.31356118]
[1732113210366,25.73356118,241.26,241.02,59.31356118]
[1732113210563,25.73356118,241.22,241.03,5.1568]
[1732113210768,3.76,241.21,241.03,5.1568]
[1732113210966,2.0713,241.17,241.11,2.0717]
[1732113211261,3.76,241.21,241.03,5.1568]
[1732113211465,2.0713,241.16,241.03,5.1568]
[1732113211768,3.76,241.21,241.03,5.1568]
[1732113212869,3.76,241.21,241.1,2.0718]
[1732113213168,5.3622,241.25,241.1,25.73356118]
[1732113213367,3.5747,241.25,241.1,25.73356118]
[1732113214263,2.0708,241.22,241.1,25.73356118]
[1732113214761,3.5747,241.25,241.1,25.73356118]
[1732113215065,3.76,241.26,241.1,25.73356118]
[1732113215260,5.4395,241.29,241.1,29.49356118]
[1732113216062,2.0708,241.22,241.16,2.0713]
[1732113216259,2.0708,241.22,241.1,29.49356118]
[1732113216466,5.4395,241.29,241.06,25.73356118]
[1732113216669,25.73356118,241.24,241.06,25.73356118]
[1732113216968,25.73356118,241.24,241.03,8.9168]
[1732113217269,3.4833,241.23,241.03,8.9168]
[1732113217466,25.73356118,241.2,241.03,5.1568]
[1732113217770,3.76,241.19,241.03,5.1568]
[1732113217962,2.0717,241.12,241.06,2.0721]
[1732113218164,25.73356118,241.16,240.96,29.49356118]
[1732113218367,25.73356118,241.12,240.97,5.113]
[1732113218567,3.76,241.11,240.97,5.113]
[1732113218773,3.76,241.11,241.03,2.0724]
[1732113218774,2.072,241.08,241.03,2.0724]
[1732113218968,3.76,241.11,240.97,5.113]
[1732113219262,3.76,241.11,240.92,25.73356118]
[1732113219466,5.1423,241.1,240.89,5.0856]
[1732113219662,25.73356118,241.08,240.89,5.0856]
[1732113219866,2.0725,241.03,240.89,5.0856]
[1732113220268,2.0726,241.01,240.95,2.073]
[1732113220463,5.1423,241.1,240.89,5.0856]
[1732113220464,3.76,241.03,240.89,1.6305]
[1732113220772,3.76,241.02,240.84,25.73356118]
[1732113220964,25.73356118,241.04,240.84,25.73356118]
[1732113221173,5.1423,241.1,240.92,25.73356118]
[1732113221467,5.1423,241.1,240.81,3.76]
[1732113221468,5.1423,241.1,240.88,25.73356118]
[1732113221663,25.73356118,241.08,240.88,25.73356118]
[1732113221869,2.0724,241.03,240.95,2.0731]
[1732113222062,25.73356118,241.08,240.88,25.73356118]
[1732113222266,25.73356118,241.08,240.89,5.0215]
[1732113222461,2.0724,241.04,240.94,2.0731]
[1732113222666,2.0724,241.04,240.89,5.0215]
[1732113223066,2.0722,241.06,240.98,2.0728]
[1732113223266,5.1423,241.1,240.98,2.0728]
[1732113223768,5.1423,241.1,240.96,25.73356118]
[1732113224162,7.2141,241.1,241.03,2.0724]
[1732113224361,5.1423,241.1,240.96,25.73356118]
[1732113224869,2.0722,241.06,240.96,25.73356118]
[1732113225062,5.1423,241.1,240.96,25.73356118]
[1732113225667,5.1423,241.1,240.92,25.73356118]
[1732113226769,5.1423,241.1,240.95,2.0731]
[1732113226969,5.1423,241.1,240.89,5.0215]
[1732113226970,25.73356118,241.08,240.89,5.0215]
[1732113227471,25.73356118,241.04,240.84,25.73356118]
[1732113227670,25.73356118,241.0,240.8,25.73356118]
[1732113228074,3.76,241.03,240.84,25.73356118]
[1732113228474,3.76,241.03,240.89,2.0735]
[1732113228673,3.76,241.03,240.84,25.73356118]
[1732113228973,3.76,241.03,240.88,2.0736]
[1732113229170,3.76,241.03,240.8,25.73356118]
[1732113229371,2.0728,240.99,240.89,2.0736]
[1732113229679,3.76,241.03,240.84,25.73356118]
[1732113230067,2.073,240.96,240.89,2.0736]
[1732113230468,3.76,241.03,240.84,25.73356118]
[1732113231168,2.0728,240.99,240.91,2.0734]
[1732113231370,3.76,241.03,240.84,25.73356118]
[1732113231574,3.78,241.05,240.88,25.73356118]
[1732113231775,3.78,241.05,240.85,3.78]
[1732113232373,2.0728,240.99,240.85,3.78]
[1732113232573,3.78,241.05,240.85,3.78]